fUST/lending_fUST_20251121
["ID","MTS","AMOUNT","RATE_DAILY","PERIOD"]
[394530070,1763669847800,-2921.85,0.000434,14]
[394530071,1763669847825,-160.0,0.00043696,5]
[394530072,1763669847851,-170.0,0.00044,90]
[394530073,1763669847876,-674.89852393,0.00044101,120]
[394530074,1763669847901,-246.48,0.00044109,30]
[394530075,1763669847925,-155.0,0.000443,120]
[394530076,1763669847950,-160.0,0.00044382,6]
[394530077,1763669847974,-39036.53,0.000445,5]
[394530078,1763669847999,-500.0,0.000448,6]
[394530079,1763669848025,-179.60076227,0.00044932,30]
[394530080,1763669848048,-20000.0,0.00045,7]
[394530081,1763669848071,-246.48,0.00045479,30]
[394530082,1763669848098,-261.69,0.000455,30]
[394530083,1763669848123,-179.60076227,0.00045534,30]
[394530084,1763669848147,-5000.0,0.00046,7]
[394530085,1763669848171,-170.0,0.00046027,90]
[394530086,1763669848196,-160.0,0.00046056,6]
[394530087,1763669848223,-160.823588,0.0004608,60]
[394530088,1763669848249,-460.699953,0.00046278,30]
[394530089,1763669848273,-681.3229241,0.00046278,30]
[394530090,1763669848303,-252.142156,0.00046278,30]
[394530091,1763669848328,-160.0,0.00046389,7]
[394530092,1763669848355,-3956.85697878,0.00046424,28]
[394530093,1763669848382,-500.0,0.00046575,10]
[394530094,1763669848407,-500.0,0.00046575,10]
[394530095,1763669848432,-500.0,0.00046575,20]
[394530096,1763669848456,-508.16449127,0.00046575,20]
[394530097,1763669848481,-528.96,0.00046575,7]
[394530098,1763669848506,-151.0,0.00046575,120]
[394530099,1763669848532,-151.0,0.00046575,120]
[394530100,1763669848557,-500.0,0.00046575,10]
[394530101,1763669848582,-155.0,0.000467,120]
[394530102,1763669848609,-246.48,0.00046849,30]
[394530103,1763669848634,-500.0,0.00046849,10]
[394530104,1763669848660,-500.0,0.00046849,20]
[394530105,1763669848685,-528.96,0.00046849,7]
[394530106,1763669848714,-500.0,0.00046849,10]
[394530107,1763669848741,-3570.126351,0.00046849,120]
[394530108,1763669848768,-3570.126351,0.00046849,120]
[394530109,1763669848795,-3570.126351,0.00046849,120]
[394530110,1763669848825,-3570.12635853,0.00046849,120]
[394530111,1763669848852,-156.41262,0.00046849,120]
[394530112,1763669848879,-500.0,0.00046849,120]
[394530113,1763669848904,-500.0,0.00046849,120]
[394530114,1763669848930,-500.0,0.00046849,120]
[394530115,1763669848956,-500.0,0.00046849,120]
[394530116,1763669848981,-151.0,0.00046849,120]
[394530117,1763669849007,-151.0,0.00046849,120]
[394530118,1763669849033,-151.0,0.00046849,120]
[394530119,1763669849059,-500.0,0.00047123,10]
[394530120,1763669849084,-500.0,0.00047123,20]
[394530121,1763669849108,-528.96,0.00047123,7]
[394530122,1763669849132,-500.0,0.00047123,10]
[394530123,1763669849156,-2921.85,0.000472,14]
[394530124,1763669849184,-500.0,0.00047397,10]
[394530125,1763669849209,-500.0,0.00047397,20]
[394530126,1763669849234,-528.96,0.00047397,7]
[394530127,1763669849260,-500.0,0.00047397,10]
[394530128,1763669849289,-1525.434579,0.000474,20]
[394530129,1763669849315,-500.0,0.00047671,10]
[394530130,1763669849340,-528.96,0.00047671,7]
[394530131,1763669849368,-500.0,0.00047671,10]
[394530132,1763669849392,-641.82431478,0.00047945,10]
[394530133,1763669849416,-528.96,0.00047945,7]
[394530134,1763669849442,-500.0,0.00047945,10]
[394530135,1763669849468,-183.005852,0.00048,60]
[394530136,1763669849494,-246.48,0.00048219,30]
[394530137,1763669849519,-528.96,0.00048219,7]
[394530138,1763669849544,-500.0,0.00048219,10]
[394530139,1763669849568,-171.0,0.00048329,90]
[394530140,1763669849593,-160.0,0.00048396,8]
[394530141,1763669849617,-160.0,0.00048416,7]
[394530142,1763669849642,-528.96,0.00048493,7]
[394530143,1763669849666,-272.44981714,0.00048493,10]
[394530144,1763669849693,-2000.0,0.00048571,21]
[394530145,1763669849719,-528.96,0.00048767,7]
[394530146,1763669849746,-151.0,0.00048767,120]
[394530147,1763669849771,-151.0,0.00048767,120]
[394530148,1763669849889,-2000.0,0.00049,47]
[394530149,1763669849918,-155.0,0.00049,120]
[394530150,1763669849944,-528.96,0.00049041,7]
[394530151,1763669849968,-528.96,0.00049315,7]
[394530152,1763669849992,-423421.6501,0.0004944,30]
[394530153,1763669850017,-235109.36729235,0.00049444,30]
[394530155,1763669861558,-33848.09190352,0.00039144,7]
[394530156,1763669861585,-1270.44747204,0.00039144,7]
[394530157,1763669861614,-46572.99758232,0.00039144,120]
[394530158,1763669861642,-945.75952926,0.00039144,120]
[394530159,1763669861668,-20377.0,0.00039144,30]
[394530160,1763669861696,-151.0,0.00039144,50]
[394530161,1763669861723,-151.0,0.00039144,50]
[394530162,1763669861750,-151.0,0.00039144,50]
[394530163,1763669861778,-151.0,0.00039144,50]
[394530164,1763669861806,-151.0,0.00039144,50]
[394530165,1763669861833,-151.0,0.00039144,50]
[394530166,1763669861863,-151.0,0.00039144,50]
[394530167,1763669861890,-151.0,0.00039144,50]
[394530168,1763669861916,-151.0,0.00039144,50]
[394530169,1763669861944,-151.0,0.00039144,50]
[394530170,1763669861969,-151.0,0.00039144,50]
[394530171,1763669861994,-151.0,0.00039144,50]
[394530172,1763669862020,-151.0,0.00039144,50]
[394530173,1763669862046,-151.0,0.00039144,50]
[394530174,1763669862071,-151.0,0.00039144,50]
[394530175,1763669862098,-151.0,0.00039144,50]
[394530176,1763669862124,-151.0,0.00039144,50]
[394530177,1763669862150,-151.0,0.00039144,30]
[394530178,1763669862176,-151.0,0.00039144,30]
[394530179,1763669862202,-180.550553,0.00039144,7]
[394530180,1763669862228,-180.550553,0.00039144,7]
[394530181,1763669862253,-180.550553,0.00039144,7]
[394530182,1763669862285,-180.550553,0.00039144,7]
[394530183,1763669862310,-180.550553,0.00039144,7]
[394530184,1763669862336,-180.550553,0.00039144,7]
[394530185,1763669862362,-180.550553,0.00039144,7]
[394530186,1763669862387,-180.550553,0.00039144,7]
[394530187,1763669862412,-180.550553,0.00039144,7]
[394530188,1763669862438,-180.550553,0.00039144,7]
[394530189,1763669862463,-180.550553,0.00039144,7]
[394530190,1763669862489,-180.550553,0.00039144,7]
[394530191,1763669862515,-180.550553,0.00039144,7]
[394530192,1763669862540,-180.550553,0.00039144,7]
[394530193,1763669862566,-180.550553,0.00039144,7]
[394530194,1763669862592,-180.550553,0.00039144,7]
[394530195,1763669862623,-180.550553,0.00039144,7]
[394530196,1763669862650,-180.550553,0.00039144,7]
[394530197,1763669862680,-180.550553,0.00039144,7]
[394530198,1763669862706,-180.550548,0.00039144,7]
[394530199,1763669862733,-151.0,0.00039144,50]
[394530200,1763669862759,-151.0,0.00039144,50]
[394530201,1763669862785,-1245.9,0.00039144,30]
[394530202,1763669862815,-250.0,0.00039144,10]
[394530203,1763669862842,-250.0,0.00039144,10]
[394530204,1763669862870,-250.0,0.00039144,10]
[394530205,1763669862896,-458.454966,0.00039144,10]
[394530206,1763669862927,-151.0,0.00039144,50]
[394530207,1763669862953,-151.0,0.00039144,50]
[394530208,1763669863097,-151.0,0.00039144,50]
[394530209,1763669863121,-151.0,0.00039144,50]
[394530210,1763669863145,-151.000001,0.00039144,50]
[394530211,1763669864959,151.0,0.00039144,7]
[394530218,1763670125620,-2000.0,0.00039131,120]
[394530227,1763670462427,1537.01133477,0.0003866,30]
[394530228,1763670477779,1219.98541682,0.0003866,30]
[394530231,1763670490041,150.0,0.000328,120]
[394530234,1763670506504,2211.30363863,0.0003866,30]
[394530236,1763670507822,30605.33739032,0.00038649,120]
[394530237,1763670511545,1897.20236499,0.00038649,30]
[394530239,1763670513044,3814.44285644,0.00038649,30]
[394530241,1763670516071,452.999999,0.0002,120]
[394530243,1763670518234,1207.81508409,0.00038649,30]
[394530244,1763670518599,300.0,2.5e-05,30]
[394530245,1763670520742,1554.216884,0.00038649,30]
[394530246,1763670522377,2070.84646046,0.00038649,30]
[394530248,1763670526192,1133.73425491,0.00038649,120]
[394530255,1763670560104,-208.52012184,6.717e-05,2]
[394530258,1763670604987,4152.0,0.00038649,20]
[394530259,1763670627326,200.0,0.00027,120]
[394530260,1763670627580,218.76154,0.000323,120]
[394530314,1763670635098,200.0,0.00027,120]
[394530315,1763670635442,200.0,0.000323,120]
[394530343,1763670637671,-14.80510174,6.717e-05,2]
[394530344,1763670637680,-150.0,7.327e-05,2]
[394530345,1763670637689,-806.2648886,8.011e-05,2]
[394530424,1763670644310,-157.12767982,8.011e-05,2]
[394530426,1763670644319,-639.83182263,9.158e-05,2]
[394530427,1763670644328,-177.0,9.327e-05,2]
[394530428,1763670644338,-223.32522358,9.388e-05,2]
[394530429,1763670644347,-3802.71527397,9.41e-05,2]
[394530477,1763670661690,152.83,1e-05,2]
[394530478,1763670661979,152.83,1e-05,2]
[394530479,1763670662314,152.83,1e-05,2]
[394530480,1763670662637,152.83,1e-05,2]
[394530481,1763670662928,152.83,1e-05,2]
[394530482,1763670663234,152.83,1e-05,2]
[394530483,1763670663512,152.83,1e-05,2]
[394530484,1763670663804,152.83,1e-05,2]
[394530485,1763670664145,152.83,1e-05,2]
[394530486,1763670664442,152.83,1e-05,2]
[394530487,1763670664714,152.83,1e-05,2]
[394530488,1763670665114,80.70337396,1e-05,2]
[394530489,1763670665141,72.12662604,1e-05,2]
[394530490,1763670665429,152.83,1e-05,2]
[394530491,1763670665791,152.83,1e-05,2]
[394530492,1763670666223,152.83,1e-05,2]
[394530493,1763670666552,152.83,1e-05,2]
[394530494,1763670666875,152.83,1e-05,2]
[394530495,1763670667182,152.83,1e-05,2]
[394530496,1763670667525,152.83,1e-05,2]
[394530497,1763670667851,152.83,1e-05,2]
[394530498,1763670668162,152.83,1.1e-05,2]
[394530499,1763670668431,152.83,1.1e-05,2]
[394530500,1763670668716,152.83,1.1e-05,2]
[394530501,1763670669001,152.83,1.1e-05,2]
[394530502,1763670669369,152.83,1.1e-05,2]
[394530503,1763670669679,152.83,1.1e-05,2]
[394530504,1763670669960,152.83,1.1e-05,2]
[394530505,1763670670240,152.83,1.1e-05,2]
[394530506,1763670670521,152.83,1.1e-05,2]
[394530510,1763670670816,152.83,1.1e-05,2]
[394530511,1763670671102,152.83,1.1e-05,2]
[394530513,1763670672216,152.83,1.1e-05,2]
[394530514,1763670672552,152.83,1.1e-05,2]
[394530515,1763670672830,152.83,1.1e-05,2]
[394530516,1763670673107,152.83,1.1e-05,2]
[394530517,1763670673467,152.83,1.1e-05,2]
[394530518,1763670673739,152.83,1.1e-05,2]
[394530519,1763670674004,152.83,1.1e-05,2]
[394530520,1763670674395,152.83,1.1e-05,2]
[394530521,1763670674911,152.83,1.1e-05,2]
[394530522,1763670675182,152.83,1.1e-05,2]
[394530542,1763670722148,159.25,1e-05,2]
[394530543,1763670722348,159.25,1e-05,2]
[394530544,1763670722620,159.25,1e-05,2]
[394530545,1763670722904,159.25,1e-05,2]
[394530546,1763670723226,159.25,1.1e-05,2]
[394530547,1763670723496,159.25,1.1e-05,2]
[394530548,1763670723775,159.25,1.1e-05,2]
[394530549,1763670724062,159.25,1.1e-05,2]
[394530551,1763670765883,2000.0,0.00038649,30]
[394530552,1763670766273,1069.9,0.00038649,30]
[394530553,1763670782055,163.24,1e-05,2]
[394530554,1763670782379,163.24,1e-05,2]
[394530555,1763670782661,163.24,1e-05,2]
[394530556,1763670782940,163.24,1e-05,2]
[394530557,1763670783241,163.24,1.1e-05,2]
[394530558,1763670783515,163.24,1.1e-05,2]
[394530559,1763670783796,163.24,1.1e-05,2]
[394530560,1763670842368,163.73,1e-05,2]
[394530561,1763670842660,163.73,1e-05,2]
[394530562,1763670842949,163.73,1e-05,2]
[394530563,1763670843242,163.73,1e-05,2]
[394530564,1763670843547,163.73,1.1e-05,2]
[394530565,1763670843818,163.73,1.1e-05,2]
[394530566,1763670844144,163.73,1.1e-05,2]
[394530567,1763670844492,163.73,1.1e-05,2]
[394530569,1763670901483,159.26,1e-05,2]
[394530570,1763670901767,159.26,1e-05,2]
[394530571,1763670902132,159.26,1e-05,2]
[394530572,1763670902423,159.26,1e-05,2]
[394530573,1763670902709,159.26,1.1e-05,2]
[394530574,1763670902992,159.26,1.1e-05,2]
[394530575,1763670903265,159.26,1.1e-05,2]
[394530576,1763670903527,218.03823036,0.00032877,120]
[394530577,1763670903592,113000.0,0.00032877,120]
[394530578,1763670903665,227.85818101,0.00032877,120]
[394530579,1763670903705,17500.68916526,0.00038678,31]
[394530580,1763670903774,499.999999,0.00032877,120]
[394530581,1763670903849,2262.0,0.00032877,120]
[394530582,1763670903957,2417.88563469,0.00032877,120]
[394530583,1763670904023,1010.94921101,0.00032877,120]
[394530584,1763670904085,159.26,1.1e-05,2]
[394530585,1763670904199,159.26,1.1e-05,2]
[394530608,1763670924669,151.0,0.00038678,50]
[394530609,1763670924960,151.0,0.00038678,50]
[394530610,1763670925262,151.0,0.00038678,50]
[394530611,1763670925556,151.0,0.00038678,50]
[394530615,1763670927177,151.0,0.00038678,50]
[394530616,1763670927802,151.0,0.00038678,50]
[394530617,1763670928118,151.0,0.00038678,50]
[394530618,1763670928464,151.0,0.00038678,50]
[394530619,1763670928782,151.0,0.00038678,50]
[394530620,1763670929116,151.0,0.00038678,50]
[394530621,1763670929426,151.0,0.00038678,50]
[394530622,1763670929734,151.0,0.00038678,50]
[394530623,1763670930058,151.0,0.00038678,50]
[394530624,1763670930356,151.0,0.00038678,50]
[394530625,1763670930654,151.0,0.00038678,50]
[394530626,1763670930955,151.0,0.00038678,50]
[394530627,1763670931249,151.0,0.00038678,50]
[394530628,1763670931539,151.0,0.00038678,50]
[394530629,1763670931833,151.0,0.00038678,50]
[394530631,1763670932128,151.0,0.00038678,50]
[394530633,1763670932420,194.676656,0.00038678,50]
[394530634,1763670933114,151.0,0.00038678,50]
[394530635,1763670933405,151.0,0.00038678,50]
[394530636,1763670933710,151.0,0.00038678,50]
[394530637,1763670934008,255.975559,0.00038678,50]
[394530645,1763670938870,179.798834,0.00038678,50]
[394530646,1763670939072,179.798834,0.00038678,50]
[394530647,1763670939359,179.798834,0.00038678,50]
[394530648,1763670939645,179.798834,0.00038678,50]
[394530649,1763670939937,179.798834,0.00038678,50]
[394530650,1763670940228,179.798834,0.00038678,50]
[394530651,1763670940522,179.798834,0.00038678,50]
[394530652,1763670940810,179.798834,0.00038678,50]
[394530653,1763670941106,179.798834,0.00038678,50]
[394530654,1763670941387,179.798834,0.00038678,50]
[394530655,1763670941698,179.798834,0.00038678,50]
[394530656,1763670941995,179.798834,0.00038678,50]
[394530657,1763670942307,179.798834,0.00038678,50]
[394530658,1763670942591,179.798834,0.00038678,50]
[394530659,1763670942876,179.798834,0.00038678,50]
[394530660,1763670943169,179.798834,0.00038678,50]
[394530661,1763670943455,179.798834,0.00038678,50]
[394530662,1763670943742,179.798834,0.00038678,50]
[394530663,1763670944034,179.798834,0.00038678,50]
[394530664,1763670944310,179.798826,0.00038678,50]
[394530665,1763670946756,151.0,0.00038678,50]
[394530666,1763670947041,151.0,0.00038678,50]
[394530667,1763670947322,151.0,0.00038678,50]
[394530668,1763670947607,151.0,0.00038678,50]
[394530669,1763670947891,151.0,0.00038678,50]
[394530670,1763670948386,151.0,0.00038678,50]
[394530671,1763670948692,151.0,0.00038678,50]
[394530672,1763670948984,151.0,0.00038678,50]
[394530673,1763670949275,151.0,0.00038678,50]
[394530674,1763670949578,151.0,0.00038678,50]
[394530675,1763670949869,151.0,0.00038678,50]
[394530676,1763670950161,151.0,0.00038678,50]
[394530677,1763670950454,151.0,0.00038678,50]
[394530678,1763670950746,151.0,0.00038678,50]
[394530679,1763670951039,151.0,0.00038678,50]
[394530680,1763670951324,151.0,0.00038678,50]
[394530681,1763670951607,151.0,0.00038678,50]
[394530682,1763670951894,151.0,0.00038678,50]
[394530683,1763670952188,299.634312,0.00038678,50]
[394530685,1763670961803,159.25,1e-05,2]
[394530686,1763670962095,159.25,1e-05,2]
[394530687,1763670962487,159.25,1e-05,2]
[394530688,1763670962647,159.25,1e-05,2]
[394530689,1763670962944,159.25,1.1e-05,2]
[394530690,1763670963220,159.25,1.1e-05,2]
[394530691,1763670963495,159.25,1.1e-05,2]
[394530692,1763670963769,159.25,1.1e-05,2]
[394530693,1763670964705,159.25,1.1e-05,2]
[394530696,1763670965820,151.0,0.00038678,50]
[394530697,1763670965906,151.0,0.00038678,50]
[394530698,1763670966115,151.0,0.00038678,50]
[394530699,1763670966219,151.0,0.00038678,50]
[394530700,1763670966404,151.0,0.00038678,50]
[394530701,1763670966690,151.0,0.00038678,50]
[394530702,1763670966976,151.0,0.00038678,50]
[394530703,1763670967332,151.0,0.00038678,50]
[394530704,1763670969728,151.0,0.00038678,50]
[394530705,1763670970017,151.0,0.00038678,50]
[394530706,1763670970459,151.0,0.00038678,50]
[394530707,1763670970756,151.0,0.00038678,50]
[394530708,1763670971047,151.0,0.00038678,50]
[394530709,1763670971376,151.0,0.00038678,50]
[394530710,1763670971632,151.0,0.00038678,50]
[394530711,1763670971668,171.511923,0.00038678,50]
[394530712,1763670971981,151.0,0.00038678,50]
[394530713,1763670972044,171.511923,0.00038678,50]
[394530714,1763670972252,151.0,0.00038678,50]
[394530715,1763670972292,171.511923,0.00038678,50]
[394530716,1763670972547,171.511923,0.00038678,50]
[394530717,1763670972585,151.0,0.00038678,50]
[394530718,1763670972833,171.511923,0.00038678,50]
[394530719,1763670972890,151.0,0.00038678,50]
[394530720,1763670972935,151.0,0.00038678,50]
[394530721,1763670973116,171.511923,0.00038678,50]
[394530722,1763670973164,151.0,0.00038678,50]
[394530723,1763670973231,151.0,0.00038678,50]
[394530724,1763670973313,151.0,0.00038678,50]
[394530725,1763670973457,151.0,0.00038678,50]
[394530726,1763670973561,151.0,0.00038678,50]
[394530727,1763670973597,171.511923,0.00038678,50]
[394530728,1763670973636,151.0,0.00038678,50]
[394530729,1763670973755,151.0,0.00038678,50]
[394530730,1763670973874,151.0,0.00038678,50]
[394530731,1763670973908,171.511923,0.00038678,50]
[394530732,1763670974044,267.953188,0.00038678,50]
[394530733,1763670974168,151.0,0.00038678,50]
[394530734,1763670974454,151.0,0.00038678,50]
[394530735,1763670974745,171.511923,0.00038678,50]
[394530736,1763670974811,151.0,0.00038678,50]
[394530737,1763670975097,171.511923,0.00038678,50]
[394530738,1763670975160,151.0,0.00038678,50]
[394530739,1763670975412,171.511923,0.00038678,50]
[394530740,1763670975485,151.0,0.00038678,50]
[394530741,1763670975701,171.511923,0.00038678,50]
[394530742,1763670975735,151.0,0.00038678,50]
[394530743,1763670975990,171.511923,0.00038678,50]
[394530744,1763670976027,151.0,0.00038678,50]
[394530745,1763670976300,171.511923,0.00038678,50]
[394530746,1763670976328,237.093532,0.00038678,50]
[394530747,1763670976499,151.0,0.00038678,50]
[394530748,1763670976594,171.511923,0.00038678,50]
[394530749,1763670976800,220.037329,0.00038678,50]
[394530750,1763670976883,171.511923,0.00038678,50]
[394530751,1763670977175,171.511923,0.00038678,50]
[394530752,1763670977481,171.511923,0.00038678,50]
[394530753,1763670977784,171.511923,0.00038678,50]
[394530754,1763670978083,171.511927,0.00038678,50]
[394530755,1763670980803,151.0,0.00038678,50]
[394530756,1763670981175,151.0,0.00038678,50]
[394530757,1763670981371,151.0,0.00038678,50]
[394530758,1763670981687,151.0,0.00038678,50]
[394530759,1763670981981,151.0,0.00038678,50]
[394530760,1763670982304,151.0,0.00038678,50]
[394530761,1763670982596,151.0,0.00038678,50]
[394530762,1763670982920,151.0,0.00038678,50]
[394530763,1763670983219,151.0,0.00038678,50]
[394530764,1763670983814,151.0,0.00038678,50]
[394530765,1763670984111,151.0,0.00038678,50]
[394530766,1763670984393,193.344507,0.00038678,50]
[394530767,1763670988681,151.0,0.00038678,50]
[394530768,1763670988892,151.0,0.00038678,50]
[394530769,1763670989187,151.0,0.00038678,50]
[394530770,1763670989493,151.0,0.00038678,50]
[394530771,1763670989836,151.0,0.00038678,50]
[394530772,1763670990162,151.0,0.00038678,50]
[394530773,1763670990467,151.0,0.00038678,50]
[394530774,1763670990762,151.0,0.00038678,50]
[394530775,1763670991054,151.0,0.00038678,50]
[394530776,1763670991339,151.0,0.00038678,50]
[394530777,1763670993227,151.0,0.00038678,50]
[394530778,1763670993515,151.0,0.00038678,50]
[394530780,1763670993817,151.0,0.00038678,50]
[394530783,1763670994185,151.0,0.00038678,50]
[394530784,1763670994477,151.0,0.00038678,50]
[394530785,1763670994797,151.0,0.00038678,50]
[394530786,1763670995088,151.0,0.00038678,50]
[394530787,1763670995388,151.0,0.00038678,50]
[394530788,1763670995701,151.0,0.00038678,50]
[394530789,1763670996293,151.0,0.00038678,50]
[394530791,1763670996989,151.0,0.00038678,50]
[394530792,1763670997052,151.0,0.00038678,50]
[394530794,1763670997468,151.0,0.00038678,50]
[394530796,1763670997712,182.270824,0.00038678,50]
[394530798,1763671012576,151.0,0.00038678,50]
[394530799,1763671012867,151.0,0.00038678,50]
[394530800,1763671013179,151.0,0.00038678,50]
[394530801,1763671013466,151.0,0.00038678,50]
[394530802,1763671013780,151.0,0.00038678,50]
[394530803,1763671014073,151.0,0.00038678,50]
[394530804,1763671014366,151.0,0.00038678,50]
[394530805,1763671014695,151.0,0.00038678,50]
[394530806,1763671014983,151.528072,0.00038678,50]
[394530808,1763671021991,162.561217,0.00038678,50]
[394530809,1763671022070,159.26,1e-05,2]
[394530810,1763671022280,162.561217,0.00038678,50]
[394530811,1763671022384,159.26,1e-05,2]
[394530812,1763671022587,162.561217,0.00038678,50]
[394530813,1763671022640,159.26,1e-05,2]
[394530814,1763671022917,162.561217,0.00038678,50]
[394530815,1763671022950,159.26,1e-05,2]
[394530816,1763671023206,159.26,1.1e-05,2]
[394530817,1763671023239,162.561217,0.00038678,50]
[394530818,1763671023541,159.26,1.1e-05,2]
[394530819,1763671023576,162.561217,0.00038678,50]
[394530820,1763671023837,162.561217,0.00038678,50]
[394530821,1763671023869,159.26,1.1e-05,2]
[394530822,1763671024147,162.561217,0.00038678,50]
[394530823,1763671024186,159.26,1.1e-05,2]
[394530824,1763671024436,162.561217,0.00038678,50]
[394530825,1763671024733,162.561217,0.00038678,50]
[394530826,1763671025039,162.561217,0.00038678,50]
[394530827,1763671025345,162.561217,0.00038678,50]
[394530828,1763671025641,162.561217,0.00038678,50]
[394530829,1763671025936,162.561217,0.00038678,50]
[394530830,1763671026240,162.561217,0.00038678,50]
[394530832,1763671026533,162.561217,0.00038678,50]
[394530834,1763671026832,162.561217,0.00038678,50]
[394530835,1763671027119,162.561217,0.00038678,50]
[394530836,1763671027441,162.561217,0.00038678,50]
[394530837,1763671027841,162.561221,0.00038678,50]
[394530838,1763671034743,151.0,0.00038678,50]
[394530839,1763671035032,151.0,0.00038678,50]
[394530842,1763671047501,151.0,0.00038678,50]
[394530843,1763671047803,151.0,0.00038678,50]
[394530844,1763671048131,151.0,0.00038678,50]
[394530845,1763671048441,151.0,0.00038678,50]
[394530846,1763671048746,151.0,0.00038678,50]
[394530847,1763671049052,151.0,0.00038678,50]
[394530848,1763671049334,151.0,0.00038678,50]
[394530849,1763671049724,151.0,0.00038678,50]
[394530850,1763671049924,151.0,0.00038678,50]
[394530851,1763671050233,151.0,0.00038678,50]
[394530852,1763671050536,151.0,0.00038678,50]
[394530853,1763671050622,1356.839018,0.00038678,50]
[394530854,1763671050916,1356.839018,0.00038678,50]
[394530855,1763671051177,179.568776,0.00038678,50]
[394530856,1763671051228,1356.839018,0.00038678,50]
[394530857,1763671051473,168.938824,0.00038678,50]
[394530858,1763671051530,1356.839018,0.00038678,50]
[394530860,1763671051774,168.938824,0.00038678,50]
[394530861,1763671051820,1356.839018,0.00038678,50]
[394530862,1763671052060,168.938824,0.00038678,50]
[394530863,1763671052117,1356.839018,0.00038678,50]
[394530864,1763671052343,168.938824,0.00038678,50]
[394530865,1763671052430,1356.839018,0.00038678,50]
[394530866,1763671052628,168.938824,0.00038678,50]
[394530867,1763671052721,1356.839018,0.00038678,50]
[394530868,1763671052924,168.938824,0.00038678,50]
[394530869,1763671053016,1356.839018,0.00038678,50]
[394530870,1763671053230,168.938824,0.00038678,50]
[394530871,1763671053305,1356.839018,0.00038678,50]
[394530872,1763671053526,168.938824,0.00038678,50]
[394530873,1763671053628,1356.839018,0.00038678,50]
[394530874,1763671053818,168.938824,0.00038678,50]
[394530875,1763671053942,1356.839018,0.00038678,50]
[394530876,1763671054120,168.938824,0.00038678,50]
[394530877,1763671054245,1356.839018,0.00038678,50]
[394530878,1763671054405,168.938824,0.00038678,50]
[394530879,1763671054568,1356.839018,0.00038678,50]
[394530880,1763671054722,168.938824,0.00038678,50]
[394530881,1763671054874,1356.839018,0.00038678,50]
[394530882,1763671055002,168.938824,0.00038678,50]